{"text_format":"1","workbook":"xlsx","n_sheets":6,"sheets":["P. BDI 1","P. BDI 2","P. BDI 3","Kennedy e Hablich","QCI","CRON"],"not_rendered":{"charts":0,"images":0,"macros":1,"external_links":2,"defined_names":48,"comments":2,"pivot_tables":0},"unopened":[],"bounds":{"document_bytes":16777216,"sheet_cells":100000,"rows_first":2000,"rows_last":500,"rows_between":2000,"halvings":0,"cell_chars":16384,"cell_head_chars":4096},"cells_cut":0,"cells_raw":0,"read":"whole","date_system":"1900"}

{"sheet":"P. BDI 1","index":0,"n_rows":52,"n_cols":10,"rows_kept":52,"cut":false,"hidden":false,"merged":[[34,1,34,5],[35,1,35,5],[14,3,14,5],[18,2,18,4],[25,1,25,4],[26,1,26,4],[27,1,27,4],[29,1,29,4],[11,3,11,5],[6,2,6,5],[7,2,7,5],[30,1,30,4],[32,1,32,5],[8,2,8,5],[1,1,1,5],[2,2,2,5],[3,2,3,5],[4,2,4,5],[5,2,5,5]]}
[null,"IMPRIMIR EM PAPEL TIMBRADO DA EMPRESA PROPONENTE "]
[null,"BDI - Bonificações e Despesas Indiretas"]
[null,"Edital :","TP 29/2018"]
[null,"Tomador: ","Prefeitura Municipal de Dois Vizinhos - PR"]
[null,"Empreendimento: ","Revitalização Vias Urbanas"]
[null,"Local da Obra:","Dois Vizinhos - Pr"]
[null,"Empresa Prop.:","preencher"]
[null,"CNPJ:","preencher"]
[null,"Referencia:","preencher"]
[]
[null,"Identifique o tipo de obra:",1,{"$f":"IF(C11>0,IF(C11<7,,\"<--- Insira valor entre 1 e 6\"),\"<--- Insira valor entre 1 e 6\")","v":0}]
[null,"Construção de edifícios:",1,"Informe a base de cálculo do ISSQN."]
[null,"Construção de rodovias e ferrovias:",2,{"$f":"IF(D14<>0,0,\"( X )\")","v":0},"Sobre os serviços."]
[null,"Construção de redes de abastecimento de água, coleta de esgoto e construções correlatas:",3,"x","Sobre a mão-de-obra."]
[null,"Construção e manutenção de estações e redes de distribuição de energia elétrica:",4,"Informe a ocorrência da DESONERAÇÃO da folha de pagamento. Lei 12844/2013."]
[null,"Obras portuárias, marítimas e fluviais:",5,{"$f":"IF(D17<>0,0,\"( X )\")","v":0},"SEM Desoneração."]
[null,"Fornecimento de materiais e equipamentos:",6,"x","COM Desoneração."]
[]
[null,null,"Intervalo de admissibilidade",null,null,null,null,"Ac",{"$f":"F21","v":"preencher"}]
[null,"Item Componente do BDI","1º Quartil","Médio","3º Quartil","Valores Propostos",null,"S",{"$f":"F22","v":"preencher"}]
[null,"Administração Central",0.03,0.04,5.5E-2,"preencher",{"$f":"IF(F21=0,\"\",IF(F21<C21,\"Atenção, observar os intervalos!\",IF(F21>E21,\"Atenção, observar os intervalos!\",\"\")))","v":"Atenção, observar os intervalos!"},"G",{"$f":"I20","v":"preencher"}]
[null,"Seguro e Garantia",8.0000000000000002E-3,8.0000000000000002E-3,0.01,"preencher",{"$f":"IF(F22=0,\"\",IF(F22<C22,\"Atenção, observar os intervalos!\",IF(F22>E22,\"Atenção, observar os intervalos!\",\"\")))","v":"Atenção, observar os intervalos!"},"R",{"$f":"F23","v":"preencher"}]
[null,"Risco",9.7000000000000003E-3,1.2699999999999999E-2,1.2699999999999999E-2,"preencher",{"$f":"IF(F23=0,\"\",IF(F23<C23,\"Atenção, observar os intervalos!\",IF(F23>E23,\"Atenção, observar os intervalos!\",\"\")))","v":"Atenção, observar os intervalos!"},"DF","preencher"]
[null,"Despesas Financeiras",5.8999999999999999E-3,1.23E-2,1.3899999999999999E-2,"preencher",{"$f":"IF(F24=0,\"\",IF(F24<C24,\"Atenção, observar os intervalos!\",IF(F24>E24,\"Atenção, observar os intervalos!\",\"\")))","v":"Atenção, observar os intervalos!"},"L","preencher"]
[null,"Lucro",6.1600000000000002E-2,7.3999999999999996E-2,8.9599999999999999E-2,"preencher",{"$f":"IF(F25=0,\"\",IF(F25<C25,\"Atenção, observar os intervalos!\",IF(F25>E25,\"Atenção, observar os intervalos!\",\"\")))","v":"Atenção, observar os intervalos!"},"l1","preencher"]
[null,"I1: PIS e COFINS",null,null,null,"preencher",null,"l2","preencher"]
[null,"I2: ISSQN (conforme legislação municipal)",null,null,null,"preencher",null,"l3",4.4999999999999998E-2]
[null,"I3: Cont.Prev s/Rec.Bruta (Lei 12844/13 - Desoneração)",null,null,null,4.4999999999999998E-2]
[]
[null,"BDI - SEM Desoneração da folha de pagamento",null,null,null,{"$f":"ROUND((((1+I19+I21+I22)*(1+I23)*(1+I24))/(1-I25-I26))-1,4)","v":{"$error":"#VALUE!"}},null,"1º QUARTIL","MÉDIO","3º QUARTIL"]
[null,"BDI - COM Desoneração da folha de pagamento",null,null,null,{"$f":"ROUND((((1+I19+I21+I22)*(1+I23)*(1+I24))/(1-I25-I26-I27))-1,4)","v":{"$error":"#VALUE!"}},null,0.2034,0.22120000000000001,0.25]
[]
[null,"Declaramos que esta planilha foi elaborada conforme equação para cálculo do percentual do BDI recomendada pelo Acórdão 2622/2013 - TCU, representada pela fórmula abaixo."]
[]
[null,"BDI - SEM Desoneração = [(1+AC+S+G+R)X(1+DF)X(1+L)/(1-I1-I2)]-1"]
[null,"BDI - COM Desoneração = [(1+AC+S+G+R)X(1+DF)X(1+L)/(1-I1-I2-I3)]-1"]
[]
[]
[]
[]
[]
[null,"Responsável Técnico:","."]
[null,"Carimbo e Assinatura CREA/CAU:","."]
[]
[]
[]
[]
[]
[]
[]
[null,"Responsavel Legal:","."]
[null,"Carimbo e Assinatura","cpf:"]

{"sheet":"P. BDI 2","index":1,"n_rows":51,"n_cols":10,"rows_kept":51,"cut":false,"hidden":false,"merged":[[35,1,35,5],[7,2,7,5],[11,3,11,5],[14,3,14,5],[18,2,18,4],[25,1,25,4],[26,1,26,4],[27,1,27,4],[29,1,29,4],[30,1,30,4],[32,1,32,5],[34,1,34,5],[8,2,8,5],[6,2,6,5],[1,1,1,5],[2,2,2,5],[3,2,3,5],[4,2,4,5],[5,2,5,5]]}
[null,"IMPRIMIR EM PAPEL TIMBRADO DA EMPRESA PROPONENTE "]
[null,"BDI - Bonificações e Despesas Indiretas"]
[null,"Edital :",{"$f":"'P. BDI 1'!C3:F3","v":"TP 29/2018"}]
[null,"Tomador: ","Prefeitura Municipal de Dois Vizinhos - PR"]
[null,"Empreendimento: ","ASFALTO"]
[null,"Local da Obra:",{"$f":"'P. BDI 1'!C6:F6","v":"Dois Vizinhos - Pr"}]
[null,"Empresa Prop.:",{"$f":"'P. BDI 1'!C7","v":"preencher"}]
[null,"CNPJ:",{"$f":"'P. BDI 1'!C8","v":"preencher"}]
[null,"Referencia:",{"$f":"'P. BDI 1'!C9","v":"preencher"}]
[]
[null,"Identifique o tipo de obra:",2,{"$f":"IF(C11>0,IF(C11<7,,\"<--- Insira valor entre 1 e 6\"),\"<--- Insira valor entre 1 e 6\")","v":0}]
[null,"Construção de edifícios:",1,"Informe a base de cálculo do ISSQN."]
[null,"Construção de rodovias e ferrovias:",2,{"$f":"IF(D14<>0,0,\"( X )\")","v":0},"Sobre os serviços."]
[null,"Construção de redes de abastecimento de água, coleta de esgoto e construções correlatas:",3,"x","Sobre a mão-de-obra."]
[null,"Construção e manutenção de estações e redes de distribuição de energia elétrica:",4,"Informe a ocorrência da DESONERAÇÃO da folha de pagamento. Lei 12844/2013."]
[null,"Obras portuárias, marítimas e fluviais:",5,{"$f":"IF(D17<>0,0,\"( X )\")","v":0},"SEM Desoneração."]
[null,"Fornecimento de materiais e equipamentos:",6,"x","COM Desoneração."]
[]
[null,null,"Intervalo de admissibilidade",null,null,null,null,"Ac",{"$f":"F21","v":"preencher"}]
[null,"Item Componente do BDI","1º Quartil","Médio","3º Quartil","Valores Propostos",null,"S",{"$f":"F22","v":"preencher"}]
[null,"Administração Central",3.7999999999999999E-2,4.0099999999999997E-2,4.6699999999999998E-2,"preencher",{"$f":"IF(F21=0,\"\",IF(F21<C21,\"Atenção, observar os intervalos!\",IF(F21>E21,\"Atenção, observar os intervalos!\",\"\")))","v":"Atenção, observar os intervalos!"},"G",{"$f":"I20","v":"preencher"}]
[null,"Seguro e Garantia",3.2000000000000002E-3,4.0000000000000001E-3,7.4000000000000003E-3,"preencher",{"$f":"IF(F22=0,\"\",IF(F22<C22,\"Atenção, observar os intervalos!\",IF(F22>E22,\"Atenção, observar os intervalos!\",\"\")))","v":"Atenção, observar os intervalos!"},"R",{"$f":"F23","v":"preencher"}]
[null,"Risco",5.0000000000000001E-3,5.5999999999999999E-3,9.7000000000000003E-3,"preencher",{"$f":"IF(F23=0,\"\",IF(F23<C23,\"Atenção, observar os intervalos!\",IF(F23>E23,\"Atenção, observar os intervalos!\",\"\")))","v":"Atenção, observar os intervalos!"},"DF","preencher"]
[null,"Despesas Financeiras",1.0200000000000001E-2,1.11E-2,1.21E-2,"preencher",{"$f":"IF(F24=0,\"\",IF(F24<C24,\"Atenção, observar os intervalos!\",IF(F24>E24,\"Atenção, observar os intervalos!\",\"\")))","v":"Atenção, observar os intervalos!"},"L","preencher"]
[null,"Lucro",6.6400000000000001E-2,7.2999999999999995E-2,8.6900000000000005E-2,"preencher",{"$f":"IF(F25=0,\"\",IF(F25<C25,\"Atenção, observar os intervalos!\",IF(F25>E25,\"Atenção, observar os intervalos!\",\"\")))","v":"Atenção, observar os intervalos!"},"l1","preencher"]
[null,"I1: PIS e COFINS",null,null,null,"preencher",null,"l2","preencher"]
[null,"I2: ISSQN (conforme legislação municipal)",null,null,null,"preencher",null,"l3",4.4999999999999998E-2]
[null,"I3: Cont.Prev s/Rec.Bruta (Lei 12844/13 - Desoneração)",null,null,null,4.4999999999999998E-2]
[]
[null,"BDI - SEM Desoneração da folha de pagamento",null,null,null,{"$f":"ROUND((((1+I19+I21+I22)*(1+I23)*(1+I24))/(1-I25-I26))-1,4)","v":{"$error":"#VALUE!"}},null,"1º QUARTIL","MÉDIO","3º QUARTIL"]
[null,"BDI - COM Desoneração da folha de pagamento",null,null,null,{"$f":"ROUND((((1+I19+I21+I22)*(1+I23)*(1+I24))/(1-I25-I26-I27))-1,4)","v":{"$error":"#VALUE!"}},null,0.2034,0.22120000000000001,0.25]
[]
[null,"Declaramos que esta planilha foi elaborada conforme equação para cálculo do percentual do BDI recomendada pelo Acórdão 2622/2013 - TCU, representada pela fórmula abaixo."]
[]
[null,"BDI - SEM Desoneração = [(1+AC+S+G+R)X(1+DF)X(1+L)/(1-I1-I2)]-1"]
[null,"BDI - COM Desoneração = [(1+AC+S+G+R)X(1+DF)X(1+L)/(1-I1-I2-I3)]-1"]
[]
[]
[]
[]
[null,"Responsável Técnico:",{"$f":"'P. BDI 1'!C42","v":"."}]
[null,"Carimbo e Assinatura CREA/CAU:",{"$f":"'P. BDI 1'!C43","v":"."}]
[]
[]
[]
[]
[]
[]
[]
[null,"Responsavel Legal:",{"$f":"'P. BDI 1'!C51","v":"."}]
[null,"Carimbo e Assinatura",{"$f":"'P. BDI 1'!C52","v":"cpf:"}]

{"sheet":"P. BDI 3","index":2,"n_rows":51,"n_cols":10,"rows_kept":51,"cut":false,"hidden":false,"merged":[[35,1,35,5],[7,2,7,5],[11,3,11,5],[14,3,14,5],[18,2,18,4],[25,1,25,4],[26,1,26,4],[27,1,27,4],[29,1,29,4],[30,1,30,4],[32,1,32,5],[34,1,34,5],[8,2,8,5],[6,2,6,5],[1,1,1,5],[2,2,2,5],[3,2,3,5],[4,2,4,5],[5,2,5,5]]}
[null,"IMPRIMIR EM PAPEL TIMBRADO DA EMPRESA PROPONENTE "]
[null,"BDI - Bonificações e Despesas Indiretas"]
[null,"Edital :",{"$f":"'P. BDI 1'!C3:F3","v":"TP 29/2018"}]
[null,"Tomador: ","Prefeitura Municipal de Dois Vizinhos - PR"]
[null,"Empreendimento: ","DRENAGEM PLUVIAL URBANA"]
[null,"Local da Obra:",{"$f":"'P. BDI 1'!C6:F6","v":"Dois Vizinhos - Pr"}]
[null,"Empresa Prop.:",{"$f":"'P. BDI 1'!C7","v":"preencher"}]
[null,"CNPJ:",{"$f":"'P. BDI 1'!C8","v":"preencher"}]
[null,"Referencia:",{"$f":"'P. BDI 1'!C9","v":"preencher"}]
[]
[null,"Identifique o tipo de obra:",3,{"$f":"IF(C11>0,IF(C11<7,,\"<--- Insira valor entre 1 e 6\"),\"<--- Insira valor entre 1 e 6\")","v":0}]
[null,"Construção de edifícios:",1,"Informe a base de cálculo do ISSQN."]
[null,"Construção de rodovias e ferrovias:",2,{"$f":"IF(D14<>0,0,\"( X )\")","v":0},"Sobre os serviços."]
[null,"Construção de redes de abastecimento de água, coleta de esgoto e construções correlatas:",3,"x","Sobre a mão-de-obra."]
[null,"Construção e manutenção de estações e redes de distribuição de energia elétrica:",4,"Informe a ocorrência da DESONERAÇÃO da folha de pagamento. Lei 12844/2013."]
[null,"Obras portuárias, marítimas e fluviais:",5,{"$f":"IF(D17<>0,0,\"( X )\")","v":0},"SEM Desoneração."]
[null,"Fornecimento de materiais e equipamentos:",6,"x","COM Desoneração."]
[]
[null,null,"Intervalo de admissibilidade",null,null,null,null,"Ac",{"$f":"F21","v":"preencher"}]
[null,"Item Componente do BDI","1º Quartil","Médio","3º Quartil","Valores Propostos",null,"S",{"$f":"F22","v":"preencher"}]
[null,"Administração Central",3.4299999999999997E-2,4.9299999999999997E-2,6.7100000000000007E-2,"preencher",{"$f":"IF(F21=0,\"\",IF(F21<C21,\"Atenção, observar os intervalos!\",IF(F21>E21,\"Atenção, observar os intervalos!\",\"\")))","v":"Atenção, observar os intervalos!"},"G",{"$f":"I20","v":"preencher"}]
[null,"Seguro e Garantia",2.8E-3,4.8999999999999998E-3,7.4999999999999997E-3,"preencher",{"$f":"IF(F22=0,\"\",IF(F22<C22,\"Atenção, observar os intervalos!\",IF(F22>E22,\"Atenção, observar os intervalos!\",\"\")))","v":"Atenção, observar os intervalos!"},"R",{"$f":"F23","v":"preencher"}]
[null,"Risco",0.01,1.3899999999999999E-2,1.7399999999999999E-2,"preencher",{"$f":"IF(F23=0,\"\",IF(F23<C23,\"Atenção, observar os intervalos!\",IF(F23>E23,\"Atenção, observar os intervalos!\",\"\")))","v":"Atenção, observar os intervalos!"},"DF","preencher"]
[null,"Despesas Financeiras",9.4000000000000004E-3,9.9000000000000008E-3,1.17E-2,"preencher",{"$f":"IF(F24=0,\"\",IF(F24<C24,\"Atenção, observar os intervalos!\",IF(F24>E24,\"Atenção, observar os intervalos!\",\"\")))","v":"Atenção, observar os intervalos!"},"L","preencher"]
[null,"Lucro",6.7400000000000002E-2,8.0399999999999999E-2,9.4E-2,"preencher",{"$f":"IF(F25=0,\"\",IF(F25<C25,\"Atenção, observar os intervalos!\",IF(F25>E25,\"Atenção, observar os intervalos!\",\"\")))","v":"Atenção, observar os intervalos!"},"l1","preencher"]
[null,"I1: PIS e COFINS",null,null,null,"preencher",null,"l2","preencher"]
[null,"I2: ISSQN (conforme legislação municipal)",null,null,null,"preencher",null,"l3",4.4999999999999998E-2]
[null,"I3: Cont.Prev s/Rec.Bruta (Lei 12844/13 - Desoneração)",null,null,null,4.4999999999999998E-2]
[]
[null,"BDI - SEM Desoneração da folha de pagamento",null,null,null,{"$f":"ROUND((((1+I19+I21+I22)*(1+I23)*(1+I24))/(1-I25-I26))-1,4)","v":{"$error":"#VALUE!"}},null,"1º QUARTIL","MÉDIO","3º QUARTIL"]
[null,"BDI - COM Desoneração da folha de pagamento",null,null,null,{"$f":"ROUND((((1+I19+I21+I22)*(1+I23)*(1+I24))/(1-I25-I26-I27))-1,4)","v":{"$error":"#VALUE!"}},null,0.2034,0.22120000000000001,0.25]
[]
[null,"Declaramos que esta planilha foi elaborada conforme equação para cálculo do percentual do BDI recomendada pelo Acórdão 2622/2013 - TCU, representada pela fórmula abaixo."]
[]
[null,"BDI - SEM Desoneração = [(1+AC+S+G+R)X(1+DF)X(1+L)/(1-I1-I2)]-1"]
[null,"BDI - COM Desoneração = [(1+AC+S+G+R)X(1+DF)X(1+L)/(1-I1-I2-I3)]-1"]
[]
[]
[]
[]
[null,"Responsável Técnico:",{"$f":"'P. BDI 1'!C42","v":"."}]
[null,"Carimbo e Assinatura CREA/CAU:",{"$f":"'P. BDI 1'!C43","v":"."}]
[]
[]
[]
[]
[]
[]
[]
[null,"Responsavel Legal:",{"$f":"'P. BDI 1'!C51","v":"."}]
[null,"Carimbo e Assinatura",{"$f":"'P. BDI 1'!C52","v":"cpf:"}]

{"sheet":"Kennedy e Hablich","index":3,"n_rows":121,"n_cols":10,"rows_kept":121,"cut":false,"hidden":false,"merged":[[95,0,95,6],[8,4,8,7],[96,0,96,6],[9,0,9,1],[10,0,10,1],[8,0,8,1],[94,0,94,6],[11,0,11,1],[10,4,10,5],[1,0,2,7],[4,0,4,1],[5,0,5,1],[6,0,6,1],[7,0,7,1],[4,3,4,4],[5,3,5,4],[4,5,4,6],[5,5,5,6]]}
["IMPRIMIR EM PAPEL TIMBRADO DA EMPRESA PROPONENTE "]
["PLANILHA ORÇAMENTARIA"]
[]
[]
[{"$f":"'P. BDI 1'!B3","v":"Edital :"},null,{"$f":"'P. BDI 1'!C3:F3","v":"TP 29/2018"},"Área:",null,{"$f":"F31+F67+F69","v":1020.6},null,"m²"]
[{"$f":"'P. BDI 1'!B4","v":"Tomador: "},null,{"$f":"'P. BDI 1'!C4:F4","v":"Prefeitura Municipal de Dois Vizinhos - PR"},"Custo R$/m2",null,{"$f":"H97/F5","v":{"$error":"#VALUE!"}}]
[{"$f":"'P. BDI 1'!B5","v":"Empreendimento: "},null,{"$f":"'P. BDI 1'!C5:F5","v":"Revitalização Vias Urbanas"}]
[{"$f":"'P. BDI 1'!B6","v":"Local da Obra:"},null,"Av. Presidente Kennedy e Rua Firmo Hablich"]
[{"$f":"'P. BDI 1'!B7","v":"Empresa Prop.:"},null,{"$f":"'P. BDI 1'!C7:F7","v":"preencher"}]
[{"$f":"'P. BDI 1'!B8","v":"CNPJ:"},null,{"$f":"'P. BDI 1'!C8:F8","v":"preencher"}]
[{"$f":"'P. BDI 1'!B9","v":"Referencia:"},null,{"$f":"'P. BDI 1'!C9:F9","v":"preencher"},null,"LOTE 1"]
["BDI"]
[]
["ITEM .","REF.","DESCRIÇÃO","UN","VALOR UNIT.","QUANT.","VALOR UNIT C/ BDI","TOTAL"]
[]
[null,null,"AVENIDA PRESIDENTE KENNEDY",null,null,null,"TOTAL:",{"$f":"H18+H25+H36+H43+H51","v":{"$error":"#VALUE!"}}]
[null,null,null,null,null,null,null,null,null,{"$f":"ROUND(E17*F17,2)","v":0}]
[1,null,"SERVIÇOS PRELIMINARES","BDI",{"$f":"E25","v":{"$error":"#VALUE!"}},null,"TOTAL DO GRUPO:",{"$f":"SUM(H19:H24)","v":{"$error":"#VALUE!"}}]
[]
["1.1","74209/001","PLACA DE OBRA (PARA CONSTRUCAO CIVIL) EM CHAPA GALVANIZADA *N. 22*, DE *2,0 X 1,125* M","M2",null,2.25,{"$f":"ROUND((E20*$E$18)+E20,2)","v":{"$error":"#VALUE!"}},{"$f":"ROUND(G20*F20,2)","v":{"$error":"#VALUE!"}},null,{"$f":"ROUND(E20*F20,2)","v":0}]
["1.2","97627","DEMOLIÇÃO DE PILARES (POSTES) EM CONCRETO ARMADO, DE FORMA MECANIZADA COM MARTELETE, SEM REAPROVEITAMENTO. ","M3",null,{"$f":"ROUND(5*0.35*0.35*2.5,2)","v":1.53},{"$f":"ROUND((E21*$E$18)+E21,2)","v":{"$error":"#VALUE!"}},{"$f":"ROUND(G21*F21,2)","v":{"$error":"#VALUE!"}},null,{"$f":"ROUND(E21*F21,2)","v":0}]
["1.3",97636,"DEMOLIÇÃO PARCIAL DE PAVIMENTO ASFÁLTICO, DE FORMA MECANIZADA, SEM REAPROVEITAMENTO. AF_12/2017","M2",null,{"$f":"8.5+14+4.6+6.15+12+6.7+22.8+13.85","v":88.6},{"$f":"ROUND((E22*$E$18)+E22,2)","v":{"$error":"#VALUE!"}},{"$f":"ROUND(G22*F22,2)","v":{"$error":"#VALUE!"}},null,0]
["1.4",95875,"TRANSPORTE COM CAMINHÃO BASCULANTE DE 10 M3, EM VIA URBANA PAVIMENTADA","M3XKM",null,{"$f":"F22*0.2*8","v":141.76},{"$f":"ROUND((E23*$E$18)+E23,2)","v":{"$error":"#VALUE!"}},{"$error":"#VALUE!"},null,0]
[null,null,null,null,null,null,null,null,null,0]
[2,null,"PAVIMENTAÇÃO","BDI",{"$f":"'P. BDI 2'!F31","v":{"$error":"#VALUE!"}},null,"TOTAL DO GRUPO:",{"$f":"SUM(H26:H35)","v":{"$error":"#VALUE!"}},null,{"$error":"#VALUE!"}]
[null,null,null,null,null,null,null,null,null,0]
["2.1",90100,"ESCAVAÇÃO MECANIZADA COM RETROESCAVADEIRA","M3",null,{"$f":"F30+F29","v":44.8},{"$f":"ROUND((E27*$E$25)+E27,2)","v":{"$error":"#VALUE!"}},{"$f":"ROUND(G27*F27,2)","v":{"$error":"#VALUE!"}},null,0]
["2.2",72961,"REGULARIZACAO E COMPACTACAO DE SUBLEITO","M2",null,{"$f":"F31","v":108.6},{"$f":"ROUND((E28*$E$25)+E28,2)","v":{"$error":"#VALUE!"}},{"$f":"ROUND(G28*F28,2)","v":{"$error":"#VALUE!"}},null,0]
["2.3",96400,"EXECUÇÃO E COMPACTAÇÃO DE BASE E OU SUB BASE COM MACADAME SECO/RACHÃO","M3",null,{"$f":"(F22+9)*0.25+(12*0.8*0.3)","v":27.279999999999998},{"$error":"#VALUE!"},{"$error":"#VALUE!"},null,0]
["2.4",96396,"EXECUÇÃO E COMPACTAÇÃO DE BASE E OU SUB BASE COM BRITA GRADUADA SIMPLES","M3",null,{"$f":"(F22+9)*0.15+(12*0.8*0.3)","v":17.52},{"$error":"#VALUE!"},{"$f":"ROUND(G30*F30,2)","v":{"$error":"#VALUE!"}},null,0]
["2.5",96401,"EXECUÇÃO DE IMPRIMAÇÃO COM ASFALTO DILUÍDO CM-30. AF_09/2017","M2",null,{"$f":"F22+20","v":108.6},{"$error":"#VALUE!"},{"$f":"ROUND(G31*F31,2)","v":{"$error":"#VALUE!"}},null,0]
["2.6",95997,"CONSTRUÇÃO DE PAVIMENTO COM APLICAÇÃO DE CONCRETO BETUMINOSO USINADO A QUENTE (CBUQ), CAMADA DE ROLAMENTO, COM ESPESSURA DE 6,0 CM - EXCLUSIVE TRANSPORTE. AF_03/2017","M3",null,{"$f":"ROUND(F31*0.06,2)","v":6.52},{"$error":"#VALUE!"},{"$f":"ROUND(G32*F32,2)","v":{"$error":"#VALUE!"}},null,0]
["2.7",95875,"TRANSPORTE COM CAMINHÃO BASCULANTE DE 10 M3, EM VIA URBANA PAVIMENTADA","M3XKM",null,{"$f":"(F27+F32)*8","v":410.55999999999995},{"$error":"#VALUE!"},{"$f":"ROUND(G33*F33,2)","v":{"$error":"#VALUE!"}},null,0]
["2.8",72947,"SINALIZACAO HORIZONTAL COM TINTA RETRORREFLETIVA A BASE DE RESINA ACRILICA COM MICROESFERAS DE VIDRO","M2",null,{"$f":"4.8+(1.6*28)+(80*0.2)","v":65.599999999999994},{"$error":"#VALUE!"},{"$f":"ROUND(G34*F34,2)","v":{"$error":"#VALUE!"}},null,0]
[null,null,null,null,null,null,null,null,null,0]
[3,null,"DRENAGEM PLUVIAL","BDI",{"$f":"'P. BDI 3'!F31","v":{"$error":"#VALUE!"}},null,"TOTAL DO GRUPO:",{"$f":"SUM(H37:H42)","v":{"$error":"#VALUE!"}},null,{"$error":"#VALUE!"}]
[null,null,null,null,null,null,null,null,null,0]
["3.1","2 S 04 960 02 DNIT 11/2016","BOCA DE LOBO","UN",null,2,{"$f":"ROUND((E38*$E$36)+E38,2)","v":{"$error":"#VALUE!"}},{"$f":"ROUND(G38*F38,2)","v":{"$error":"#VALUE!"}},null,0]
["3.2",92221,"TUBO DE CONCRETO PARA REDES COLETORAS DE ÁGUAS PLUVIAIS, DIÂMETRO DE 600 MM, JUNTA RÍGIDA, FORNECIMENTO E ASSENTAMENTO.","M",null,12,{"$f":"ROUND((E39*$E$36)+E39,2)","v":{"$error":"#VALUE!"}},{"$f":"ROUND(G39*F39,2)","v":{"$error":"#VALUE!"}},null,0]
["3.3","2 S 04 962 02 DNIT 11/2016","CAIXA DE LIGAÇÃO E PASSAGEM","UN",null,2,{"$error":"#VALUE!"},{"$f":"ROUND(G40*F40,2)","v":{"$error":"#VALUE!"}},null,0]
["3.4",94265,"GUIA (MEIO-FIO) CONCRETO, MOLDADA IN LOCO EM TRECHO RETO COM EXTRUSORA, 14 CM BASE X 30 CM ALTURA. AF_06/2016","M",null,103,{"$error":"#VALUE!"},{"$f":"ROUND(G41*F41,2)","v":{"$error":"#VALUE!"}},null,0]
[null,null,null,null,null,null,null,null,null,0]
[4,null,"MURO / MURETA","BDI",{"$f":"'P. BDI 1'!F31","v":{"$error":"#VALUE!"}},null,"TOTAL DO GRUPO:",{"$f":"SUM(H44:H49)","v":{"$error":"#VALUE!"}},null,{"$error":"#VALUE!"}]
[null,null,null,null,null,null,null,null,null,0]
["4.1",97622,"DEMOLIÇÃO DE ALVENARIA","M3",null,{"$f":"10*0.2","v":2},{"$f":"ROUND((E45*$E$43)+E45,2)","v":{"$error":"#VALUE!"}},{"$f":"ROUND(G45*F45,2)","v":{"$error":"#VALUE!"}},null,0]
["4.2",95956,"EXECUÇÃO DE ESTRUTURAS DE CONCRETO ARMADO,FCK =\n25 MPA. ","M3",null,{"$f":"0.15*0.2*7","v":0.21},{"$f":"ROUND((E46*$E$43)+E46,2)","v":{"$error":"#VALUE!"}},{"$error":"#VALUE!"},null,0]
["4.3",87478,"ALVENARIA DE VEDAÇÃO DE BLOCOS CERÂMICOS FURADOS (ESPESSURA 9CM)  E ARGAMASSA DE ASSENTAMENTO COM PREPARO MANUAL. AF_06/2014","M2",null,6,{"$error":"#VALUE!"},{"$error":"#VALUE!"},null,0]
["4.4",87879,"CHAPISCO APLICADO SOMENTE EM PILARES E VIGAS DAS PAREDES INTERNAS, COM COLHER DE PEDREIRO. ARGAMASSA TRAÇO 1:3 ","M2",null,{"$f":"F47*2","v":12},{"$error":"#VALUE!"},{"$error":"#VALUE!"},null,0]
["4.5",87532,"EMBOÇO, PARA RECEBIMENTO DE CERÂMICA, EM ARGAMASSA TRAÇO 1:2:8, PREPARO MANUAL, APLICADO MANUALMENTE EM FACES , ESPESSURA DE 20MM, COM EXECUÇÃO DE TALISCAS. AF_06/2014","M2",null,{"$f":"F48","v":12},{"$error":"#VALUE!"},{"$error":"#VALUE!"},null,0]
[null,null,null,null,null,null,null,null,null,0]
[5,null,"RAMPAS ACESSIVEIS","BDI",{"$f":"E43","v":{"$error":"#VALUE!"}},null,"TOTAL DO GRUPO:",{"$f":"SUM(H52:H58)","v":{"$error":"#VALUE!"}},null,{"$error":"#VALUE!"}]
[null,null,null,null,null,null,null,null,null,0]
["5.1",96995,"REGULARIZACAO E COMPACTACAO MANUAL DE TERRENO COM SOQUETE","M3",null,{"$f":"F57*0.05","v":0.36000000000000004},{"$f":"ROUND((E53*$E$51)+E53,2)","v":{"$error":"#VALUE!"}},{"$f":"ROUND(G53*F53,2)","v":{"$error":"#VALUE!"}},null,{"$f":"ROUND(F53*E53,2)","v":0}]
["5.2",4721,"LASTRO DE PEDRA BRITADA N. 1 (9,5 a 19 MM)  ESPESSURA 5 CM ","M3",null,{"$f":"F57*0.05","v":0.36000000000000004},{"$f":"ROUND((E54*$E$51)+E54,2)","v":{"$error":"#VALUE!"}},{"$f":"ROUND(G54*F54,2)","v":{"$error":"#VALUE!"}},null,{"$f":"ROUND(F54*E54,2)","v":0}]
["5.3","93679 alt.","EXECUÇÃO DE PAVIMENTO EM PISO INTERTRAVADO, GUIA TATIL OU  ALERTA, COLORIDO, INCL TRAVAMENTO COM AREIA, INCLUSO COLCHAO DE PÓ DE PEDRA 5 CM E COMPACTACAO COM PLACA VIBRATORIA, COM BLOCO DE 20 X 20 CM, ESPESSURA 6 CM.      ","M2",null,{"$f":"0.55*4","v":2.2000000000000002},{"$f":"ROUND((E55*$E$51)+E55,2)","v":{"$error":"#VALUE!"}},{"$f":"ROUND(G55*F55,2)","v":{"$error":"#VALUE!"}},null,{"$f":"ROUND(F55*E55,2)","v":0}]
["5.4",96536,"FORMA TABUA P/ CONCRETO  C/ REAPROVEITAMENTO INCLUSIVE GRAVATEAMENTO","M2",null,{"$f":"0.87*2","v":1.74},{"$f":"ROUND((E56*$E$51)+E56,2)","v":{"$error":"#VALUE!"}},{"$f":"ROUND(G56*F56,2)","v":{"$error":"#VALUE!"}},null,{"$f":"ROUND(F56*E56,2)","v":0}]
["5.5",68325,"PISO EM CONCRETO 20 MPA PREPARO MECANICO, ESPESSURA 7CM, DESEMPENADO","M2",null,{"$f":"1.8*4","v":7.2},{"$f":"ROUND((E57*$E$51)+E57,2)","v":{"$error":"#VALUE!"}},{"$f":"ROUND(G57*F57,2)","v":{"$error":"#VALUE!"}},null,{"$f":"ROUND(F57*E57,2)","v":0}]
[null,null,null,null,null,null,null,null,null,0]
[null,null,"RUA FIRMO HABLICH",null,null,null,"TOTAL:",{"$f":"H61+H75+H87","v":{"$error":"#VALUE!"}},null,0]
[null,null,null,null,null,null,null,null,null,0]
[6,null,"PAVIMENTAÇÃO","BDI",{"$f":"E25","v":{"$error":"#VALUE!"}},null,"TOTAL DO GRUPO:",{"$f":"SUM(H62:H74)","v":{"$error":"#VALUE!"}},null,{"$error":"#VALUE!"}]
[]
["6.1",90100,"ESCAVAÇÃO MECANIZADA COM RETROESCAVADEIRA","M3",null,{"$f":"F66+F65","v":52},{"$f":"ROUND((E63*$E$61)+E63,2)","v":{"$error":"#VALUE!"}},{"$f":"ROUND(G63*F63,2)","v":{"$error":"#VALUE!"}},null,{"$f":"ROUND(E63*F63,2)","v":0}]
["6.2",72961,"REGULARIZACAO E COMPACTACAO DE SUBLEITO","M2",null,130,{"$f":"ROUND((E64*$E$61)+E64,2)","v":{"$error":"#VALUE!"}},{"$error":"#VALUE!"},null,{"$f":"ROUND(E64*F64,2)","v":0}]
["6.3",96400,"EXECUÇÃO E COMPACTAÇÃO DE BASE E OU SUB BASE COM MACADAME SECO/RACHÃO","M3",null,{"$f":"(F64)*0.25","v":32.5},{"$error":"#VALUE!"},{"$error":"#VALUE!"},null,0]
["6.4",96396,"EXECUÇÃO E COMPACTAÇÃO DE BASE E OU SUB BASE COM BRITA GRADUADA SIMPLES","M3",null,{"$f":"(F64)*0.15","v":19.5},{"$error":"#VALUE!"},{"$error":"#VALUE!"},null,0]
["6.5",96401,"EXECUÇÃO DE IMPRIMAÇÃO COM ASFALTO DILUÍDO CM-30. AF_09/2017","M2",null,{"$f":"F64","v":130},{"$error":"#VALUE!"},{"$error":"#VALUE!"},null,0]
["6.6",73806,"LIMPEZA DE SUPERFICIES COM JATO DE ALTA PRESSAO DE AR E AGUA","M2",null,{"$f":"F69","v":782},{"$error":"#VALUE!"},{"$error":"#VALUE!"},null,0]
["6.7",72942,"PINTURA DE LIGACAO COM EMULSAO RR-1C","M2",null,{"$f":"612+300-F67","v":782},{"$error":"#VALUE!"},{"$error":"#VALUE!"},null,0]
["6.8",96001,"FRESAGEM DE PAVIMENTO ASFÁLTICO (PROFUNDIDADE 5,0 CM)","M2",null,300,{"$error":"#VALUE!"},{"$error":"#VALUE!"},null,0]
["6.9",95997,"CONSTRUÇÃO DE PAVIMENTO COM APLICAÇÃO DE CONCRETO BETUMINOSO USINADO A QUENTE (CBUQ), CAMADA DE ROLAMENTO, COM ESPESSURA DE 6,0 CM","M3",null,{"$f":"(F67+F69)*0.06","v":54.72},{"$error":"#VALUE!"},{"$f":"ROUND(G71*F71,2)","v":{"$error":"#VALUE!"}},null,0]
["6.10",95875,"TRANSPORTE COM CAMINHÃO BASCULANTE DE 10 M3, EM VIA URBANA PAVIMENTADA","M3XKM",null,{"$f":"(F63+F71)*8","v":853.76},{"$error":"#VALUE!"},{"$f":"ROUND(G72*F72,2)","v":{"$error":"#VALUE!"}},null,0]
["6.11",72947,"SINALIZACAO HORIZONTAL COM TINTA RETRORREFLETIVA A BASE DE RESINA ACRILICA COM MICROESFERAS DE VIDRO","M2",null,{"$f":"(1.6*20)+(0.2*50)","v":42},{"$error":"#VALUE!"},{"$error":"#VALUE!"},null,0]
[null,null,null,null,null,null,null,null,null,0]
[7,null,"DRENAGEM PLUVIAL","BDI",{"$f":"E36","v":{"$error":"#VALUE!"}},null,"TOTAL DO GRUPO:",{"$f":"SUM(H76:H85)","v":{"$error":"#VALUE!"}},null,{"$error":"#VALUE!"}]
[null,null,null,null,null,null,null,null,null,0]
["7.1","2 S 04 960 02 DNIT 11/2016","BOCA DE LOBO","UN",null,4,{"$f":"ROUND((E77*$E$75)+E77,2)","v":{"$error":"#VALUE!"}},{"$f":"ROUND(G77*F77,2)","v":{"$error":"#VALUE!"}},null,0]
["7.2",92210,"TUBO DE CONCRETO PARA REDES COLETORAS DE ÁGUAS PLUVIAIS, DIÂMETRO DE 400 MM, JUNTA RÍGIDA. - FORNECIMENTO E ASSENTAMENTO. AF_12/2015","M",null,{"$f":"(15.5+14+16)","v":45.5},{"$f":"ROUND((E78*$E$75)+E78,2)","v":{"$error":"#VALUE!"}},{"$error":"#VALUE!"},null,0]
["7.3",92221,"TUBO DE CONCRETO PARA REDES COLETORAS DE ÁGUAS PLUVIAIS, DIÂMETRO DE 600 MM, JUNTA RÍGIDA FORNECIMENTO E ASSENTAMENTO.","M",null,7.5,{"$error":"#VALUE!"},{"$error":"#VALUE!"},null,0]
["7.4",90100,"ESCAVAÇÃO MECANIZADA COM RETROESCAVADEIRA","M3",null,{"$f":"(F78+F79)*0.8*1.4","v":59.360000000000007},{"$error":"#VALUE!"},{"$error":"#VALUE!"},null,0]
["7.5",95875,"TRANSPORTE COM CAMINHÃO BASCULANTE DE 10 M3, EM VIA URBANA PAVIMENTADA","M3XKM",null,{"$f":"(F80*8)-F83","v":466.93000000000006},{"$error":"#VALUE!"},{"$error":"#VALUE!"},null,0]
["7.6",93379,"REATERRO MECANIZADO DE VALA COM RETROESCAVADEIRA, COMPACTADO","M3",null,{"$f":"(F78+F79)*0.8*0.6","v":25.44},{"$error":"#VALUE!"},{"$error":"#VALUE!"},null,0]
["7.7",96396,"EXECUÇÃO E COMPACTAÇÃO DE BASE E OU SUB BASE COM BRITA GRADUADA SIMPLES","M3",null,{"$f":"(F84)*0.15","v":7.9499999999999993},{"$error":"#VALUE!"},{"$error":"#VALUE!"},null,0]
["7.8",96401,"EXECUÇÃO DE IMPRIMAÇÃO COM ASFALTO DILUÍDO CM-30. AF_09/2017","M2",null,{"$f":"(F79+F78)*1","v":53},{"$error":"#VALUE!"},{"$error":"#VALUE!"},null,0]
["7.9",94265,"GUIA (MEIO-FIO) CONCRETO, MOLDADA IN LOCO EM TRECHO RETO COM EXTRUSORA, 14 CM BASE X 30 CM ALTURA. AF_06/2016","M",null,10,{"$error":"#VALUE!"},{"$error":"#VALUE!"},null,0]
[]
[8,null,"RAMPAS ACESSIVEIS","BDI",{"$f":"E51","v":{"$error":"#VALUE!"}},null,"TOTAL DO GRUPO:",{"$f":"SUM(H88:H93)","v":{"$error":"#VALUE!"}},null,{"$f":"ROUND(E87*F87,2)","v":{"$error":"#VALUE!"}}]
[null,null,null,null,null,null,null,null,null,0]
["8.1",96995,"REGULARIZACAO E COMPACTACAO MANUAL DE TERRENO COM SOQUETE","M3",null,{"$f":"F93*0.05","v":0.36000000000000004},{"$f":"ROUND((E89*$E$87)+E89,2)","v":{"$error":"#VALUE!"}},{"$f":"ROUND(G89*F89,2)","v":{"$error":"#VALUE!"}},null,{"$f":"ROUND(F89*E89,2)","v":0}]
["8.2",4721,"LASTRO DE PEDRA BRITADA N. 1 (9,5 a 19 MM)  ESPESSURA 5 CM ","M3",null,{"$f":"F93*0.05","v":0.36000000000000004},{"$f":"ROUND((E90*$E$87)+E90,2)","v":{"$error":"#VALUE!"}},{"$f":"ROUND(G90*F90,2)","v":{"$error":"#VALUE!"}},null,{"$f":"ROUND(F90*E90,2)","v":0}]
["8.3","93679 alt.","EXECUÇÃO DE PAVIMENTO EM PISO INTERTRAVADO, GUIA TATIL OU  ALERTA, COLORIDO, INCL TRAVAMENTO COM AREIA, INCLUSO COLCHAO DE PÓ DE PEDRA 5 CM E COMPACTACAO COM PLACA VIBRATORIA, COM BLOCO DE 20 X 20 CM, ESPESSURA 6 CM.      ","M2",null,{"$f":"0.55*4","v":2.2000000000000002},{"$f":"ROUND((E91*$E$87)+E91,2)","v":{"$error":"#VALUE!"}},{"$f":"ROUND(G91*F91,2)","v":{"$error":"#VALUE!"}},null,{"$f":"ROUND(F91*E91,2)","v":0}]
["8.4",96536,"FORMA TABUA P/ CONCRETO  C/ REAPROVEITAMENTO INCLUSIVE GRAVATEAMENTO","M2",null,{"$f":"0.87*2","v":1.74},{"$f":"ROUND((E92*$E$87)+E92,2)","v":{"$error":"#VALUE!"}},{"$f":"ROUND(G92*F92,2)","v":{"$error":"#VALUE!"}},null,{"$f":"ROUND(F92*E92,2)","v":0}]
["8.5",68325,"PISO EM CONCRETO 20 MPA PREPARO MECANICO, ESPESSURA 7CM, DESEMPENADO","M2",null,{"$f":"1.8*4","v":7.2},{"$f":"ROUND((E93*$E$87)+E93,2)","v":{"$error":"#VALUE!"}},{"$f":"ROUND(G93*F93,2)","v":{"$error":"#VALUE!"}},null,{"$f":"ROUND(F93*E93,2)","v":0}]
[]
["VALOR TOTAL DA OBRA :",null,null,null,null,null,null,{"$f":"SUM(J19:J94)","v":{"$error":"#VALUE!"}}]
["BDI :",null,null,null,null,null,null,{"$f":"H97-H95","v":{"$error":"#VALUE!"}}]
["VALOR TOTAL DA OBRA COM BDI:",null,null,null,null,null,null,{"$f":"H18+H51+H25+H36+H43+H61+H75+H87","v":{"$error":"#VALUE!"}}]
[]
[]
[]
[]
[]
[]
[]
[]
[null,null,null,"Responsável Técnico:",{"$f":"'P. BDI 1'!C42","v":"."}]
[null,null,null,"Carimbo e Assinatura CREA/CAU:",{"$f":"'P. BDI 1'!C43","v":"."}]
[]
[]
[]
[]
[]
[]
[]
[]
[]
[]
[]
[]
[null,null,null,"Responsavel Legal:",{"$f":"'P. BDI 1'!C51","v":"."}]
[null,null,null,"Carimbo e Assinatura",{"$f":"'P. BDI 1'!C52","v":"cpf:"}]

{"sheet":"QCI","index":4,"n_rows":58,"n_cols":8,"rows_kept":58,"cut":false,"hidden":true,"merged":[[27,3,27,4],[27,5,27,6],[25,5,25,6],[25,3,25,4],[26,3,26,4],[26,5,26,6],[32,1,32,6],[33,1,33,6],[31,1,31,6],[28,5,28,6],[29,3,29,4],[28,3,28,4],[30,5,30,6],[30,3,30,4],[29,5,29,6],[1,0,2,7],[7,0,7,1],[7,3,7,4],[7,5,7,6],[8,0,8,1],[8,5,8,6],[8,3,8,4],[9,5,9,6],[9,3,9,4],[11,0,11,1],[9,0,9,1],[10,0,10,1],[12,0,12,1],[13,0,13,1],[14,0,14,1],[24,5,24,6],[24,3,24,4],[13,4,13,5]]}
["IMPRIMIR EM PAPEL TIMBRADO DA EMPRESA PROPONENTE "]
["QUADRO DE COMPOSIÇÃO DE INVESTIMENTO "]
[]
[]
[]
[]
[]
[{"$f":"'P. BDI 1'!B3","v":"Edital :"},null,{"$f":"'P. BDI 1'!C3:F3","v":"TP 29/2018"},"Area Total (m2):",null,{"$f":"'Kennedy e Hablich'!F67+'Kennedy e Hablich'!F69+'Kennedy e Hablich'!F31","v":1020.6}]
[{"$f":"'P. BDI 1'!B4","v":"Tomador: "},null,{"$f":"'P. BDI 1'!C4:F4","v":"Prefeitura Municipal de Dois Vizinhos - PR"},"Valor Tot. c/ BDI:",null,{"$f":"H34","v":{"$error":"#VALUE!"}}]
[{"$f":"'P. BDI 1'!B5","v":"Empreendimento: "},null,{"$f":"'P. BDI 1'!C5:F5","v":"Revitalização Vias Urbanas"},"Custo R$/m2",null,{"$f":"F9/F8","v":{"$error":"#VALUE!"}}]
[{"$f":"'P. BDI 1'!B6","v":"Local da Obra:"},null,{"$f":"C26","v":"AVENIDA PRESIDENTE KENNEDY E RUA FIRMO HABLICH"}]
[{"$f":"'P. BDI 1'!B7","v":"Empresa Prop.:"},null,{"$f":"'P. BDI 1'!C7:F7","v":"preencher"}]
[{"$f":"'P. BDI 1'!B8","v":"CNPJ:"},null,{"$f":"'P. BDI 1'!C8:F8","v":"preencher"}]
[{"$f":"'P. BDI 1'!B9","v":"Referencia:"},null,{"$f":"'P. BDI 1'!C9:F9","v":"preencher"},null,"LOTE 1"]
[]
[]
[]
[]
[]
[]
[]
[]
[]
[]
[null,"LOTE","DESCRIÇÃO ","% DO GRUPO",null,"VALOR DO GRUPO:",null,"TOTAL ACUM."]
[null,1,"AVENIDA PRESIDENTE KENNEDY E RUA FIRMO HABLICH",{"$f":"F26/$H$34","v":{"$error":"#VALUE!"}},null,{"$f":"'Kennedy e Hablich'!H97","v":{"$error":"#VALUE!"}},null,{"$f":"F26","v":{"$error":"#VALUE!"}}]
[]
[]
[]
[]
[]
[null,"VALOR TOTAL DA OBRA :",null,null,null,null,null,{"$f":"'Kennedy e Hablich'!H95","v":{"$error":"#VALUE!"}}]
[null,"BDI :",null,null,null,null,null,{"$f":"'Kennedy e Hablich'!H96","v":{"$error":"#VALUE!"}}]
[null,"VALOR TOTAL DA OBRA COM BDI:",null,null,null,null,null,{"$f":"SUM(F26:G31)","v":{"$error":"#VALUE!"}}]
[]
[]
[]
[]
[]
[]
[]
[]
[]
[]
[]
[null,null,null,"Responsável Técnico:",{"$f":"'P. BDI 1'!C42","v":"."}]
[null,null,null,"Carimbo e Assinatura CREA/CAU:",{"$f":"'P. BDI 1'!C43","v":"."}]
[]
[]
[]
[]
[]
[]
[]
[]
[]
[]
[null,null,null,"Responsavel Legal:"]

{"sheet":"CRON","index":5,"n_rows":47,"n_cols":11,"rows_kept":47,"cut":false,"hidden":false,"merged":[[18,4,18,5],[19,4,19,5],[20,4,20,5],[17,4,17,5],[16,2,16,3],[18,2,18,3],[19,2,19,3],[20,2,20,3],[8,0,8,1],[14,2,14,3],[14,4,14,5],[16,4,16,5],[15,4,15,5],[15,2,15,3],[9,5,9,6],[21,1,21,3],[21,4,21,5],[1,0,2,10],[10,0,10,1],[11,0,11,1],[7,0,7,1],[5,5,5,6],[9,0,9,1],[4,0,4,1],[4,3,4,4],[4,5,4,6],[5,0,5,1],[5,3,5,4],[6,0,6,1],[6,3,6,4],[6,5,6,6]]}
["IMPRIMIR EM PAPEL TIMBRADO DA EMPRESA PROPONENTE "]
["CRONOGRAMA FÍSICO-FINANCEIRO "]
[]
[]
[{"$f":"'P. BDI 1'!B3","v":"Edital :"},null,{"$f":"'P. BDI 1'!C3:F3","v":"TP 29/2018"},"Area:",null,{"$f":"QCI!F8","v":1020.6}]
[{"$f":"'P. BDI 1'!B4","v":"Tomador: "},null,{"$f":"'P. BDI 1'!C4:F4","v":"Prefeitura Municipal de Dois Vizinhos - PR"},"Valor Tot. c/ BDI:",null,{"$f":"K22","v":{"$error":"#VALUE!"}}]
[{"$f":"'P. BDI 1'!B5","v":"Empreendimento: "},null,{"$f":"'P. BDI 1'!C5:F5","v":"Revitalização Vias Urbanas"},"Custo R$/m2",null,{"$f":"F6/F5","v":{"$error":"#VALUE!"}}]
[{"$f":"'P. BDI 1'!B6","v":"Local da Obra:"},null,{"$f":"QCI!C11","v":"AVENIDA PRESIDENTE KENNEDY E RUA FIRMO HABLICH"}]
[{"$f":"'P. BDI 1'!B7","v":"Empresa Prop.:"},null,{"$f":"'P. BDI 1'!C7:F7","v":"preencher"}]
[{"$f":"'P. BDI 1'!B8","v":"CNPJ:"},null,{"$f":"'P. BDI 1'!C8:F8","v":"preencher"},null,null,"LOTE 1"]
[{"$f":"'P. BDI 1'!B9","v":"Referencia:"},null,{"$f":"'P. BDI 1'!C9:F9","v":"preencher"}]
[]
[]
[]
[null,"LOTE","DESCRIÇÃO ",null,"VALOR DO GRUPO",null,"MÊS °1","MÊS °2","MÊS °3","MÊS °4","% TOTAL"]
[null,{"$f":"QCI!B26","v":1},{"$f":"QCI!C26","v":"AVENIDA PRESIDENTE KENNEDY E RUA FIRMO HABLICH"},null,{"$f":"QCI!F26","v":{"$error":"#VALUE!"}},null,0.9,0.1,null,null,{"$f":"SUM(G16:J16)","v":1}]
[]
[]
[]
[]
[]
[null,"TOTAL:",null,null,null,null,{"$f":"G17*E17+G16*E16+G19*E19+G20*E20+G21*E21","v":{"$error":"#VALUE!"}},{"$f":"H17*E17+H16*E16+H19*E19+H20*E20+H21*E21","v":{"$error":"#VALUE!"}},{"$f":"I17*E17+I16*E16+I19*E19+I20*E20+I21*E21","v":{"$error":"#VALUE!"}},{"$f":"E16*J16","v":{"$error":"#VALUE!"}},{"$f":"SUM(G22:J22)","v":{"$error":"#VALUE!"}}]
[]
[]
[]
[]
[]
[]
[]
[]
[]
[]
[null,null,null,null,null,"Responsável Técnico:",{"$f":"'P. BDI 1'!C42","v":"."}]
[null,null,null,null,null,"Carimbo e Assinatura CREA/CAU:",{"$f":"'P. BDI 1'!C43","v":"."}]
[]
[]
[]
[]
[]
[]
[]
[]
[]
[]
[]
[null,null,null,null,null,"Responsavel Legal:",{"$f":"'P. BDI 1'!C51","v":"."}]
[null,null,null,null,null,"Carimbo e Assinatura",{"$f":"'P. BDI 1'!C52","v":"cpf:"}]